bitfinex-derivatives/quotes_BTCF0:USTF0_20260131
["timestamp","ask_amount","ask_price","bid_price","bid_amount"]
[1769861763147,0.10872,82951.0,82940.0,0.20680281]
[1769861763554,0.30127112,82976.0,82940.0,0.20680281]
[1769861763555,0.10872,82953.0,82940.0,0.48029958]
[1769861764049,0.001,82950.0,82940.0,0.48029958]
[1769861764257,0.4408,82958.0,82941.0,0.28557277]
[1769861764454,0.4408,82958.0,82949.0,0.20680281]
[1769861764751,0.28603049,82959.0,82949.0,0.20680281]
[1769861765353,0.28603049,82968.0,82950.0,0.27349677]
[1769861765554,0.10872,82969.0,82950.0,0.27349677]
[1769861765555,0.10872,82969.0,82959.0,0.20680281]
[1769861765754,0.39475049,82969.0,82959.0,0.20680281]
[1769861766157,0.10872,82969.0,82959.0,0.20680281]
[1769861766552,0.67418483,82995.0,82959.0,0.20680281]
[1769861766553,0.28603049,82986.0,82965.0,0.27349677]
[1769861766764,0.28603049,82986.0,82959.0,0.31548281]
[1769861766765,0.28603049,82986.0,82970.0,0.20680281]
[1769861767054,0.66501211,82992.0,82971.0,0.012072]
[1769861767251,0.38328,82992.0,82980.0,0.20680281]
[1769861767756,0.28173211,82991.0,82980.0,0.20680281]
[1769861768056,0.28173211,82991.0,82971.0,0.10868]
[1769861768057,0.28173211,82991.0,82972.0,0.012072]
[1769861768551,0.38328,82992.0,82972.0,0.30100949]
[1769861768859,0.38328,82992.0,82972.0,0.28893749]
[1769861769054,0.38328,82992.0,82980.0,0.20680281]
[1769861769260,0.28173211,82991.0,82972.0,0.30100949]
[1769861770053,0.28173211,82991.0,82972.0,0.012072]
[1769861771465,0.28173211,82991.0,82972.0,0.30100949]
[1769861771761,0.10868,82994.0,82972.0,0.30100949]
[1769861772063,0.10868,82994.0,82976.0,0.30100849]
[1769861772766,0.10868,82994.0,82979.0,0.30100849]
[1769861773557,0.28173211,83002.0,82983.0,0.28893749]
[1769861774055,0.10868,83004.0,82983.0,0.28893749]
[1769861774256,0.10868,83004.0,82987.0,0.28893749]
[1769861774966,0.39041211,83004.0,82982.0,0.30100749]
[1769861775764,0.28173211,83003.0,82982.0,0.30100749]
[1769861777267,0.10868,83004.0,82986.0,0.28893749]
[1769861777472,0.10868,83004.0,82987.0,0.012069]
[1769861778070,0.28173211,83003.0,82983.0,0.01207]
[1769861778375,0.28173211,83003.0,82981.0,0.10864]
[1769861785670,0.28173211,83003.0,82982.0,0.28893749]
[1769861786480,0.28173211,83003.0,82982.0,0.30100749]
[1769861787875,0.28173211,83003.0,82982.0,0.28893749]
[1769861789673,0.28173211,83003.0,82981.0,0.10864]
[1769861792173,0.28173211,83003.0,82982.0,0.28893749]
[1769861793072,0.28173211,83003.0,82983.0,0.30100749]
[1769861794172,0.28173211,83003.0,82983.0,0.28893749]
[1769861794575,0.28173211,83003.0,82981.0,0.10864]
[1769861795175,0.28173211,83003.0,82982.0,0.28893749]
[1769861801274,0.28173211,83003.0,82983.0,0.27693229]
[1769861802275,0.28173211,83003.0,82983.0,0.42156558]
[1769861802874,0.28173211,83003.0,82983.0,0.27693229]
[1769861803374,0.28173211,83003.0,82983.0,0.42156558]
[1769861804281,0.28173211,83003.0,82984.0,0.27693229]
[1769861808283,0.28173211,83003.0,82985.0,0.27693229]
[1769861808888,0.10868,83004.0,82985.0,0.27693229]
[1769861809281,0.10868,83004.0,82986.0,0.27693229]
[1769861809791,0.10868,83004.0,82987.0,0.27693229]
[1769861813293,0.10868,83004.0,82987.0,0.42156558]
[1769861813494,0.10868,83004.0,82988.0,0.27693229]
[1769861814887,0.10868,83004.0,82990.0,0.012069]
[1769861815091,0.10868,83004.0,82991.0,0.27693229]
[1769861815686,0.10868,83004.0,82995.0,0.27693229]
[1769861815894,0.29546008,83013.0,82995.0,0.27693229]
[1769861816087,0.1086,83012.0,82996.0,0.27693229]
[1769861818396,0.1086,83012.0,82997.0,0.27693229]
[1769861819502,0.1086,83012.0,82998.0,0.27693229]
[1769861819985,0.1086,83012.0,83000.0,0.27693229]
[1769861821095,0.1086,83012.0,82998.0,0.09647275]
[1769861821285,0.29546008,83011.0,82997.0,0.09647275]
[1769861821492,0.29546008,83011.0,82996.0,0.09647275]
[1769861821691,0.29546008,83011.0,82995.0,0.09647275]
[1769861821991,0.1086,83012.0,82996.0,0.27693229]
[1769861822395,0.1086,83012.0,82998.0,0.27693229]
[1769861822995,0.29546008,83011.0,82997.0,0.09647275]
[1769861823197,0.29546008,83011.0,82988.0,0.09647275]
[1769861823602,0.29546008,83011.0,82982.0,0.42156558]
[1769861823800,0.29546008,83011.0,82982.0,0.27693229]
[1769861824395,0.29546008,83011.0,82979.0,0.14463329]
[1769861825197,0.29546008,83011.0,82979.0,0.42156558]
[1769861825598,0.29546008,83011.0,82977.0,0.14463329]
[1769861825793,0.29546008,83011.0,82969.0,0.14463329]
[1769861825999,0.29546008,83011.0,82967.0,0.42156558]
[1769861826199,0.36127175,83011.0,82967.0,0.27693229]
[1769861826503,0.36127175,83011.0,82965.0,0.14463329]
[1769861826703,0.36127175,83011.0,82965.0,0.41823124]
[1769861827106,0.36227175,83011.0,82965.0,0.41823124]
[1769861827303,0.36227175,83011.0,82965.0,0.27359795]
[1769861827704,0.36227175,83011.0,82964.0,0.14463329]
[1769861827904,0.36227175,83011.0,82965.0,0.27359795]
[1769861828093,0.36227175,83011.0,82967.0,0.27359795]
[1769861829703,0.28752586,82999.0,82967.0,0.27359795]
[1769861829901,0.28752586,82997.0,82967.0,0.27359795]
[1769861831602,0.28752586,82997.0,82969.0,0.27359795]
[1769861833905,0.65964,82998.0,82971.0,0.27359795]
[1769861834209,0.65964,82998.0,82973.0,0.27359795]
[1769861834406,0.28752586,83001.0,82973.0,0.27359795]
[1769861834603,0.28752586,82999.0,82973.0,0.27359795]
[1769861834804,0.28752586,82999.0,82975.0,0.27359795]
[1769861835407,0.661,83000.0,82975.0,0.27359795]
[1769861835606,0.661,83000.0,82979.0,0.27359795]
[1769861835912,0.661,83000.0,82983.0,0.27359795]
[1769861837105,0.553,82999.0,82983.0,0.27359795]
[1769861837309,0.6616,82999.0,82983.0,0.27359795]
[1769861838408,0.6616,82999.0,82989.0,0.27359795]
[1769861838811,0.28752586,83009.0,82989.0,0.27359795]
[1769861839016,0.66216,83008.0,82989.0,0.27359795]
[1769861840210,0.28752586,83007.0,82991.0,0.27359795]
[1769861840410,0.28752586,83007.0,82987.0,0.28566695]
[1769861841309,0.28752586,83007.0,82979.0,0.14463329]
[1769861841613,0.28752586,82999.0,82972.0,0.28566995]
[1769861841815,0.28752586,82997.0,82972.0,0.27359795]
[1769861842409,0.28752586,82997.0,82972.0,0.28566995]
[1769861842811,0.20645105,82990.0,82972.0,0.28566995]
[1769861843011,0.20645105,82983.0,82973.0,0.10463786]
[1769861843807,0.28752586,82985.0,82968.0,0.28566995]
[1769861844014,0.66332,82987.0,82970.0,0.27359795]
[1769861844211,0.20645105,83000.0,82978.0,0.27359795]
[1769861844516,0.66368,82999.0,82980.0,0.27359795]
[1769861845517,0.66368,82999.0,82982.0,0.27359795]
[1769861845911,0.20645105,83010.0,82987.0,0.012069]
[1769861846113,0.6642,83009.0,82988.0,0.27359795]
[1769861846417,0.95172586,83009.0,82988.0,0.27359795]
[1769861847218,0.95172586,83009.0,82990.0,0.27359795]
[1769861847419,0.95172586,83009.0,82978.0,0.14463329]
[1769861847420,0.95172586,83009.0,82991.0,0.28566695]
[1769861848110,0.95172586,83009.0,82991.0,0.27359795]
[1769861848506,0.28752586,83008.0,82991.0,0.27359795]
[1769861848711,0.28752586,83008.0,82988.0,0.012069]
[1769861848913,0.28752586,83000.0,82985.0,0.01207]
[1769861849213,0.28752586,83000.0,82982.0,0.01207]
[1769861849617,0.28752586,83000.0,82982.0,0.28566795]
[1769861851124,0.28752586,83008.0,82985.0,0.01207]
[1769861854725,0.28752586,83008.0,82990.0,0.20645105]
[1769861855121,0.28752586,83008.0,82980.0,0.35108434]
[1769861855325,0.28752586,83008.0,82980.0,0.36315434]
[1769861855716,0.28752586,83008.0,82981.0,0.14463329]
[1769861857518,0.28752586,83008.0,82982.0,0.14463329]
[1769861859617,0.28752586,83008.0,82982.0,0.15670329]
[1769861862230,0.28752586,83008.0,82990.0,0.20645105]
[1769861864326,0.28852586,83008.0,82990.0,0.20645105]
[1769861867031,0.001,83008.0,82998.0,0.20645105]
[1769861867226,0.001,83008.0,82998.0,0.50148909]
[1769861867431,0.45472,83007.0,82998.0,0.50148909]
[1769861867739,0.45472,83007.0,82998.0,0.20645105]
[1769861869638,0.45472,83007.0,82994.0,0.29503804]
[1769861872040,0.45472,83007.0,82995.0,0.30710604]
[1769861872345,0.45472,83007.0,82997.0,0.20645105]
[1769861873945,0.1086,83011.0,83000.0,0.29503804]
[1769861874246,0.1086,83014.0,83004.0,0.29503804]
[1769861877146,0.29670376,83037.0,83007.0,0.29503804]
[1769861877339,0.29170376,83033.0,83020.0,0.20645105]
[1769861878450,0.29170376,83033.0,83014.0,0.29503804]
[1769861878649,0.29270376,83033.0,83014.0,0.29503804]
[1769861878946,0.29270376,83033.0,83020.0,0.20645105]
[1769861879551,0.29270376,83033.0,83014.0,0.29503804]
[1769861880053,0.29170376,83033.0,83014.0,0.29503804]
[1769861882046,0.29170376,83033.0,83013.0,0.012066]
[1769861882450,0.29170376,83033.0,83013.0,0.30710404]
[1769861882650,0.29170376,83033.0,83009.0,0.012066]
[1769861882848,0.29170376,83033.0,83005.0,0.012067]
[1769861883657,0.29170376,83033.0,83000.0,0.1086]
[1769861883846,0.29170376,83033.0,82993.0,0.012068]
[1769861884041,0.29170376,83033.0,82995.0,0.012068]
[1769861884242,0.29170376,83032.0,82995.0,0.012068]
[1769861885149,0.29170376,83032.0,83000.0,0.20645105]
[1769861885452,0.29170376,83032.0,83010.0,0.20645105]
[1769861886154,0.29270376,83032.0,83010.0,0.20645105]
[1769861886355,0.29270376,83032.0,83010.0,0.50148909]
[1769861886944,0.29170376,83032.0,83010.0,0.50148909]
[1769861887548,0.29170376,83032.0,83010.0,0.20645105]
[1769861888457,0.29170376,83032.0,83005.0,0.012067]
[1769861888960,0.29170376,83032.0,83002.0,0.012067]
[1769861889448,0.29170376,83032.0,83010.0,0.20645105]
[1769861890251,0.29270376,83032.0,83005.0,0.29894534]
[1769861890460,0.29270376,83032.0,83005.0,0.012067]
[1769861890649,0.29270376,83032.0,83001.0,0.012067]
[1769861890962,0.29170376,83032.0,83001.0,0.012067]
[1769861891157,0.29170376,83032.0,83000.0,0.20645105]
[1769861891552,0.29170376,83032.0,82998.0,0.012068]
[1769861892556,0.29170376,83032.0,82994.0,0.012068]
[1769861893662,0.29217319,83030.0,82994.0,0.012068]
[1769861895153,0.29717319,83030.0,82994.0,0.012068]
[1769861895556,0.29817319,83030.0,82994.0,0.012068]
[1769861895862,0.29817319,83030.0,82986.0,0.15652537]
[1769861896058,0.29817319,83030.0,82986.0,0.01207]
[1769861896258,0.29817319,83030.0,82986.0,0.15652537]
[1769861896462,0.29817319,83030.0,82986.0,0.01207]
[1769861897064,0.29217319,83029.0,82986.0,0.01207]
[1769861898168,0.29217319,83029.0,82989.0,0.012069]
[1769861899665,0.29317319,83029.0,82989.0,0.012069]
[1769861900264,0.29217319,83029.0,82989.0,0.012069]
[1769861900563,0.29317319,83029.0,82991.0,0.012069]
[1769861900763,0.29217319,83025.0,82991.0,0.012069]
[1769861900963,0.29217319,83023.0,82991.0,0.012069]
[1769861901167,0.29217319,83023.0,82991.0,0.29894734]
[1769861902465,0.29217319,83023.0,82991.0,0.28687834]
[1769861902661,0.29217319,83023.0,82987.0,0.012069]
[1769861902861,0.29317319,83023.0,82987.0,0.012069]
[1769861903169,0.29317319,83023.0,82987.0,0.29894734]
[1769861903960,0.29317319,83023.0,82987.0,0.012069]
[1769861904265,0.29317319,83023.0,82983.0,0.29894834]
[1769861904461,0.29317319,83023.0,82983.0,0.01207]
[1769861904657,0.29317319,83023.0,82971.0,0.012072]
[1769861904658,0.29317319,83023.0,82977.0,0.14445537]
[1769861904857,0.53147802,83021.0,82976.0,0.012071]
[1769861905164,0.29217319,83019.0,82976.0,0.012071]
[1769861905764,0.29217319,83019.0,82976.0,0.29894934]
[1769861906459,0.29317319,83019.0,82976.0,0.29894934]
[1769861908170,0.29217319,83017.0,82976.0,0.29894934]
[1769861909370,0.29317319,83017.0,82976.0,0.29894934]
[1769861910664,0.29317319,83017.0,82980.0,0.28687834]
[1769861910861,0.29317319,83017.0,82975.0,0.29894934]
[1769861911067,0.29317319,83017.0,82971.0,0.28687834]
[1769861911266,0.29217319,83016.0,82971.0,0.28687834]
[1769861911576,0.29217319,83014.0,82971.0,0.28687834]
[1769861911768,0.29217319,83012.0,82971.0,0.28687834]
[1769861913676,0.29217319,83012.0,82971.0,0.29895034]
[1769861914075,0.29317319,83012.0,82971.0,0.29895034]
[1769861914774,0.29217319,83012.0,82971.0,0.29895034]
[1769861914974,0.001,83012.0,82971.0,0.28687834]
[1769861915268,0.001,83012.0,82983.0,0.28687834]
[1769861915480,0.001,83012.0,82988.0,0.28687834]
[1769861915481,0.29317319,83012.0,82988.0,0.28687834]
[1769861915971,0.001,83012.0,82989.0,0.012069]
[1769861916160,0.001,83012.0,82992.0,0.28687834]
[1769861916364,0.50228,83011.0,82992.0,0.28687834]
[1769861917572,0.27928313,83018.0,82992.0,0.28687834]
[1769861917770,0.1086,83010.0,82992.0,0.28687834]
[1769861918478,0.1086,83010.0,82999.0,0.2868923]
[1769861918666,0.23930483,83038.0,82987.0,0.1086]
[1769861918667,0.1086,83014.0,83006.0,0.2868923]
[1769861921872,0.57432,83027.0,83014.0,0.28451262]
[1769861922974,0.57432,83027.0,83005.0,0.1086]
[1769861922975,0.57432,83027.0,83009.0,0.28451262]
[1769861923276,0.57432,83027.0,83010.0,0.012066]
[1769861923475,0.57432,83027.0,83010.0,0.29657862]
[1769861924571,0.86776513,83027.0,83010.0,0.29657862]
[1769861924771,0.29344513,83026.0,83010.0,0.012066]
[1769861925570,0.29344513,83026.0,83005.0,0.1086]
[1769861926873,0.29344513,83026.0,83002.0,0.012067]
[1769861928974,0.29344513,83026.0,82994.0,0.1086]
[1769861929274,0.29344513,83026.0,82991.0,0.29658162]
[1769861931080,0.29344513,83026.0,82984.0,0.14445537]
[1769861931081,0.29344513,83026.0,82995.0,0.28451262]
[1769861931277,0.29344513,83026.0,82997.0,0.28451262]
[1769861931576,0.35945053,83026.0,82997.0,0.28451262]
[1769861931782,0.35945053,83026.0,82999.0,0.28451262]
[1769861932581,0.35945053,83026.0,83001.0,0.28451262]
[1769861932786,0.29344513,83026.0,83003.0,0.28451262]
[1769861933478,0.29344513,83026.0,83007.0,0.28451262]
[1769861933667,0.64122005,83027.0,83007.0,0.28451262]
[1769861933871,0.64122005,83027.0,83009.0,0.28451262]
[1769861934885,0.93466518,83027.0,83009.0,0.28451262]
[1769861935180,0.29344513,83026.0,83009.0,0.28451262]
[1769861935882,0.57696,83025.0,83009.0,0.28451262]
[1769861936180,0.1086,83024.0,83009.0,0.29657862]
[1769861936384,0.1086,83024.0,83009.0,0.28451262]
[1769861941479,0.1086,83024.0,82998.0,0.29658062]
[1769861941480,0.29344513,83023.0,82998.0,0.29658062]
[1769861941691,0.29344513,83023.0,82994.0,0.012068]
[1769861941884,0.29344513,83023.0,82990.0,0.012069]
[1769861942088,0.29344513,83023.0,82990.0,0.29658162]
[1769861943093,0.29344513,83023.0,82983.0,0.01207]
[1769861943689,0.29344513,83019.0,82983.0,0.01207]
[1769861944390,0.29344513,83019.0,82979.0,0.012071]
[1769861944690,0.29344513,83019.0,82979.0,0.29658362]
[1769861945888,0.29444513,83019.0,82979.0,0.29658362]
[1769861946693,0.29344513,83019.0,82979.0,0.29658362]
[1769861948391,0.36027202,83019.0,82979.0,0.29658362]
[1769861948790,0.2981804,83018.0,82979.0,0.29658362]
[1769861949486,0.2981804,83018.0,82983.0,0.29368278]
[1769861950687,0.2981804,83018.0,82990.0,0.29368278]
[1769861950990,0.2981804,83018.0,82995.0,0.29368278]
[1769861950991,0.68852,83017.0,82995.0,0.29368278]
[1769861951192,0.9867004,83017.0,82995.0,0.29368278]
[1769861951393,0.2981804,83016.0,82995.0,0.29368278]
[1769861953795,0.2981804,83016.0,82983.0,0.01207]
[1769861954092,0.2981804,83016.0,82981.0,0.29368278]
[1769861955982,0.2981804,83016.0,82983.0,0.29368278]
[1769861956184,0.2981804,83016.0,82985.0,0.29368278]
[1769861956992,0.2981804,83016.0,82987.0,0.29368278]
[1769861967707,0.20644503,82997.0,82987.0,0.29368278]
[1769861967904,0.89892503,82997.0,82987.0,0.29368278]
[1769861968598,0.89892503,82997.0,82980.0,0.29368278]
[1769861968906,0.20644503,82990.0,82980.0,0.29368278]
[1769861970604,0.20644503,82990.0,82980.0,0.29468278]
[1769861973612,0.69248,82997.0,82986.0,0.29368278]
[1769861973808,0.20644503,83000.0,82986.0,0.29368278]
[1769861974005,0.20644503,83000.0,82988.0,0.29368278]
[1769861974215,0.69408,83003.0,82996.0,0.29368278]
[1769861976505,0.69408,83003.0,82996.0,0.29468278]
[1769861977308,0.69408,83003.0,82996.0,0.29368278]
[1769861978114,0.58712,83002.0,82996.0,0.29368278]
[1769861984316,0.58988,83001.0,82996.0,0.29368278]
[1769861984525,0.1086,83004.0,82996.0,0.29368278]
[1769861984715,0.58992,83004.0,82996.0,0.29368278]
[1769861986318,0.69892,83008.0,82996.0,0.29368278]
[1769861986919,0.69892,83008.0,82996.0,0.29568278]
[1769861987614,0.69892,83008.0,82996.0,0.29368278]
[1769861987818,0.69892,83008.0,82996.0,0.29468278]
[1769861989232,0.69892,83008.0,82996.0,0.29368278]
[1769861989512,0.69892,83008.0,82996.0,0.29468278]
[1769861989915,0.23930483,83034.0,82996.0,0.29468278]
[1769861989916,0.27576936,83037.0,82996.0,0.29468278]
[1769861990115,0.20644503,83020.0,83006.0,0.14445537]
[1769861990319,0.27576936,83019.0,83004.0,0.012067]
[1769861990622,0.27576936,83019.0,83003.0,0.30213878]
[1769861991021,0.27576936,83019.0,83003.0,0.29007178]
[1769861991614,0.27576936,83019.0,82999.0,0.012068]
[1769861991819,0.27576936,83045.0,83009.0,0.20644503]
[1769861992120,0.27576936,83038.0,83015.0,0.012065]
[1769861992510,0.27576936,83038.0,83011.0,0.29571925]
[1769861992910,0.27576936,83038.0,83014.0,0.29571925]
[1769861993109,0.5924,83044.0,83014.0,0.29571925]
[1769861993110,0.27576936,83043.0,83014.0,0.29571925]
[1769861993310,0.27576936,83043.0,83018.0,0.28365325]
[1769861993725,0.27576936,83043.0,83020.0,0.28472748]
[1769861993921,0.27576936,83043.0,83021.0,0.28472748]
[1769861997022,0.29780731,83061.0,83036.0,0.284787]
[1769861997320,0.27576936,83057.0,83040.0,0.20644503]
[1769861997524,0.27576936,83057.0,83036.0,0.284787]
[1769861997824,0.27576936,83057.0,83041.0,0.27929232]
[1769861998024,0.59328,83058.0,83041.0,0.27929232]
[1769861998225,0.27576936,83067.0,83041.0,0.27929232]
[1769861998415,0.05,83072.0,83040.0,0.20644503]
[1769861998416,0.97788936,83066.0,83044.0,0.27929232]
[1769861998616,0.001,83061.0,83044.0,0.27929232]
[1769861998823,0.05,83072.0,83056.0,0.27829232]
[1769861999126,0.05,83072.0,83060.0,0.48473735]
[1769861999330,0.32576936,83072.0,83054.0,0.01206]
[1769862000014,0.32576936,83072.0,83054.0,0.28442289]
[1769862000229,0.05,83072.0,83054.0,0.28442289]
[1769862000819,0.27576936,83094.0,83060.0,0.22236289]
[1769862001015,0.27576936,83092.0,83068.0,0.22236289]
[1769862001222,0.70248,83091.0,83068.0,0.22236289]
[1769862001422,0.70248,83091.0,83073.0,0.22236289]
[1769862001627,0.70264,83092.0,83078.0,0.19761056]
[1769862001823,0.59408,83092.0,83078.0,0.19761056]
[1769862002220,0.27576936,83112.0,83082.0,0.19761056]
[1769862002429,0.43432,83118.0,83089.0,0.012055]
[1769862002430,0.10856,83102.0,83089.0,0.012055]
[1769862002630,0.27576936,83118.0,83090.0,0.19761056]
[1769862002929,0.27576936,83116.0,83090.0,0.19761056]
[1769862003529,0.27576936,83116.0,83086.0,0.15576588]
[1769862004939,0.27576936,83116.0,83085.0,0.012055]
[1769862005234,0.27576936,83116.0,83082.0,0.10856]
[1769862005235,0.27576936,83116.0,83082.0,0.26432588]
[1769862006635,0.27576936,83116.0,83071.0,0.10852]
[1769862006832,0.27576936,83116.0,83071.0,0.24339413]
[1769862007028,0.27676936,83116.0,83072.0,0.13487413]
[1769862007329,0.27676936,83116.0,83071.0,0.10852]
[1769862008436,0.27029076,83114.0,83071.0,0.10852]
[1769862008736,0.27029076,83114.0,83072.0,0.1426252]
[1769862009239,0.27029076,83112.0,83076.0,0.1305682]
[1769862010430,0.27029076,83112.0,83071.0,0.10852]
[1769862010631,0.27029076,83112.0,83071.0,0.25443792]
[1769862010832,0.27029076,83112.0,83072.0,0.14591792]
[1769862011029,0.27029076,83112.0,83071.0,0.10852]
[1769862011030,0.001,83114.0,83086.0,0.14591792]
[1769862011228,0.10952,83114.0,83088.0,0.14591792]
[1769862011935,0.10952,83114.0,83090.0,0.14252045]
[1769862012138,0.10852,83114.0,83090.0,0.14252045]
[1769862013432,0.10852,83114.0,83092.0,0.15331499]
[1769862014045,0.10852,83114.0,83094.0,0.15331499]
[1769862014528,0.27029076,83134.0,83103.0,0.15331499]
[1769862014734,0.10848,83133.0,83108.0,0.15331499]
[1769862014930,0.426,83133.0,83108.0,0.15331499]
[1769862015945,0.426,83133.0,83111.0,0.16159538]
[1769862016235,0.426,83133.0,83114.0,0.16159538]
[1769862016445,0.10848,83140.0,83116.0,0.16159538]
[1769862016736,0.10848,83140.0,83122.0,0.16159538]
[1769862018935,0.06777402,83152.0,83122.0,0.16159538]
[1769862019138,0.70524,83151.0,83122.0,0.16159538]
[1769862019332,0.97553076,83151.0,83122.0,0.16159538]
[1769862021045,0.27029076,83150.0,83111.0,0.13547654]
[1769862021244,0.27029076,83150.0,83114.0,0.13547654]
[1769862021546,0.27029076,83150.0,83116.0,0.13547654]
[1769862022246,0.27029076,83150.0,83118.0,0.14590723]
[1769862023436,0.70524,83151.0,83118.0,0.14590723]
[1769862023635,0.70524,83151.0,83120.0,0.14481488]
[1769862023834,0.70524,83151.0,83122.0,0.14481488]
[1769862024043,0.27029076,83150.0,83122.0,0.14481488]
[1769862024342,0.27029076,83150.0,83111.0,0.14481488]
[1769862024545,0.27029076,83150.0,83107.0,0.012051]
[1769862024546,0.27029076,83150.0,83112.0,0.25325488]
[1769862026343,0.27029076,83150.0,83097.0,0.15556771]
[1769862026539,0.27129076,83150.0,83098.0,0.10844]
[1769862026751,0.27129076,83150.0,83098.0,0.26400771]
[1769862026944,0.27129076,83150.0,83099.0,0.15556771]
[1769862028938,0.27029076,83150.0,83099.0,0.15556771]
[1769862029144,0.27129076,83150.0,83099.0,0.15556771]
[1769862029845,0.27029076,83150.0,83099.0,0.15556771]
[1769862030047,0.27129076,83150.0,83099.0,0.15556771]
[1769862031942,0.27129076,83150.0,83098.0,0.10844]
[1769862032544,0.27129076,83150.0,83098.0,0.28136498]
[1769862032945,0.27029076,83150.0,83098.0,0.28136498]
[1769862033152,0.27129076,83150.0,83098.0,0.28136498]
[1769862033447,0.27029076,83149.0,83098.0,0.28136498]
[1769862034649,0.27029076,83149.0,83099.0,0.17431777]
[1769862034839,0.27029076,83149.0,83098.0,0.10844]
[1769862035039,0.27029076,83149.0,83093.0,0.17431777]
[1769862035245,0.23930483,83148.0,83093.0,0.17431777]
[1769862035553,0.23930483,83148.0,83085.0,0.14313863]
[1769862035554,0.27029076,83146.0,83086.0,0.1759223]
[1769862035848,0.27029076,83145.0,83086.0,0.1759223]
[1769862036244,0.27029076,83145.0,83088.0,0.1759223]
[1769862036553,0.27029076,83143.0,83088.0,0.1759223]
[1769862036740,0.27029076,83143.0,83084.0,0.14313863]
[1769862036945,0.27095523,83139.0,83082.0,0.2843623]
[1769862037152,0.27095523,83137.0,83082.0,0.2843623]
[1769862037452,0.27095523,83135.0,83082.0,0.10844]
[1769862037648,0.27095523,83132.0,83076.0,0.18416112]
[1769862038345,0.23930483,83129.0,83076.0,0.18416112]
[1769862038548,0.27095523,83127.0,83076.0,0.18416112]
[1769862040045,0.27195523,83127.0,83076.0,0.18416112]
[1769862040356,0.27195523,83127.0,83071.0,0.18931052]
[1769862040553,0.29104214,83123.0,83071.0,0.18931052]
[1769862040751,0.29104214,83121.0,83064.0,0.14313863]
[1769862041053,0.29104214,83117.0,83061.0,0.18931052]
[1769862041351,0.29104214,83114.0,83061.0,0.18931052]
[1769862043753,0.29204214,83114.0,83061.0,0.18931052]
[1769862045560,0.29104214,83114.0,83061.0,0.18931052]
[1769862045758,0.29204214,83114.0,83061.0,0.18931052]
[1769862046244,0.3599522,83114.0,83061.0,0.18931052]
[1769862046443,0.3599522,83114.0,83065.0,0.18752837]
[1769862046656,0.29104214,83112.0,83065.0,0.18752837]
[1769862057456,0.29104214,83110.0,83060.0,0.18305125]
[1769862057659,0.29104214,83108.0,83060.0,0.18305125]
[1769862058054,0.29104214,83107.0,83060.0,0.18305125]
[1769862058254,0.23930483,83105.0,83049.0,0.18305125]
[1769862058557,0.29104214,83101.0,83049.0,0.18305125]
[1769862058757,0.29104214,83099.0,83049.0,0.18305125]
[1769862060754,0.29204214,83099.0,83049.0,0.18305125]
[1769862060953,0.29104214,83095.0,83049.0,0.18305125]
[1769862061157,0.29104214,83094.0,83049.0,0.18305125]
[1769862061553,0.29104214,83093.0,83049.0,0.18305125]
[1769862061759,0.29104214,83092.0,83049.0,0.18305125]
[1769862061957,0.29104214,83091.0,83042.0,0.18390934]
[1769862062257,0.29104214,83089.0,83042.0,0.18390934]
[1769862062458,0.10848,83090.0,83042.0,0.18390934]
[1769862062459,0.29104214,83087.0,83042.0,0.18390934]
[1769862062760,0.29104214,83087.0,83044.0,0.18390934]
[1769862064669,0.29104214,83086.0,83044.0,0.18390934]
[1769862069666,0.35863693,83086.0,83044.0,0.18390934]
[1769862072365,0.35863693,83086.0,83041.0,0.1833264]
[1769862073563,0.35963693,83086.0,83041.0,0.1833264]
[1769862074759,0.29539584,83085.0,83041.0,0.1833264]
[1769862076170,0.29539584,83085.0,83041.0,0.1953864]
[1769862076865,0.29639584,83085.0,83041.0,0.1953864]
[1769862077369,0.29639584,83085.0,83041.0,0.1833264]
[1769862077571,0.29639584,83085.0,83038.0,0.0001032]
[1769862077572,0.29539584,83082.0,83038.0,0.19561861]
[1769862077775,0.29539584,83080.0,83038.0,0.19561861]
[1769862077964,0.29539584,83078.0,83038.0,0.19561861]
[1769862080173,0.29539584,83076.0,83038.0,0.19561861]
[1769862081670,0.29539584,83069.0,83038.0,0.19561861]
[1769862081871,0.29539584,83067.0,83038.0,0.19561861]
[1769862082175,0.29539584,83065.0,83038.0,0.19561861]
[1769862082768,0.29539584,83059.0,83038.0,0.0001032]
[1769862084373,0.29639584,83059.0,83038.0,0.0001032]
[1769862084575,0.29539584,83049.0,83023.0,0.14313863]
[1769862084779,0.29539584,83047.0,83022.0,0.30775415]
[1769862085179,0.29539584,83047.0,83022.0,0.19923415]
[1769862085578,0.29539584,83045.0,83022.0,0.19923415]
[1769862087082,0.20610284,83040.0,83022.0,0.19923415]
[1769862087285,0.61088,83039.0,83022.0,0.19923415]
[1769862087483,0.10852,83038.0,83022.0,0.19923415]
[1769862090085,0.29539584,83031.0,83009.0,0.14313863]
[1769862090280,0.20610284,83020.0,83009.0,0.21805411]
[1769862090580,0.0001032,83019.0,83009.0,0.21805411]
[1769862091082,0.0001032,83019.0,82995.0,0.24101662]
[1769862091083,0.29549904,83019.0,82998.0,0.36119274]
[1769862091274,0.29549904,83019.0,82999.0,0.21805411]
[1769862091685,0.20610284,83010.0,82999.0,0.21805411]
[1769862091888,0.20610284,83010.0,82992.0,0.17892329]
[1769862091889,0.72064,83009.0,82992.0,0.22109914]
[1769862094279,0.6129032,83019.0,83002.0,0.22142124]
[1769862094584,0.10856,83018.0,83004.0,0.22142124]
[1769862095282,0.10856,83018.0,82996.0,0.22142124]
[1769862095787,0.10856,83018.0,82993.0,0.10856]
[1769862095788,0.6132632,83019.0,83003.0,0.22143198]
[1769862096089,0.0001032,83019.0,83003.0,0.22143198]
[1769862099995,0.0001032,83019.0,83003.0,0.22243198]
[1769862106989,0.28065285,83012.0,82990.0,0.33752764]
[1769862107193,0.28065285,83012.0,82991.0,0.19438901]
[1769862108306,0.28065285,83012.0,82991.0,0.20645701]
[1769862108803,0.71284,83011.0,82996.0,0.19371131]
[1769862110507,0.10856,83010.0,82996.0,0.19371131]
[1769862111299,0.31466284,83010.0,82996.0,0.19371131]
[1769862114705,0.10856,83010.0,82996.0,0.19371131]
[1769862118004,0.10856,83010.0,83000.0,0.20610284]
[1769862118205,0.10856,83010.0,83001.0,0.17818156]
[1769862119818,0.10856,83010.0,83000.0,0.20610284]
[1769862120006,0.10856,83010.0,82997.0,0.17954787]
[1769862120427,0.10856,83010.0,82991.0,0.17954787]
[1769862120613,0.28065285,83009.0,82986.0,0.17954787]
[1769862120916,0.28065285,83009.0,82987.0,0.17954787]
[1769862121107,0.28065285,83007.0,82987.0,0.17954787]
[1769862121301,0.28065285,83007.0,82985.0,0.14313863]
[1769862121517,0.28065285,83007.0,82985.0,0.17664463]